bitfinex/quotes_BTCUSD_20230905
["timestamp","ask_amount","ask_price","bid_price","bid_amount"]
[1693947485610,0.00098787,25719.0,25716.0,0.0792]
[1693947485814,0.00098787,25719.0,25718.0,0.1025]
[1693947486022,0.00098787,25719.0,25718.0,1.31004894]
[1693947486229,0.23331218,25721.0,25718.0,1.31004894]
[1693947486230,0.09332487,25721.0,25718.0,1.31004894]
[1693947486434,0.29013581,25721.0,25719.0,0.1025]
[1693947487308,0.29013581,25721.0,25718.0,1.31004894]
[1693947487845,0.28976923,25721.0,25719.0,0.002]
[1693947488241,0.19681094,25721.0,25719.0,0.002]
[1693947488451,0.19981094,25721.0,25719.0,0.002]
[1693947488653,0.19681094,25721.0,25719.0,0.002]
[1693947488853,1.78749873,25722.0,25719.0,0.002]
[1693947489080,0.003,25721.0,25719.0,0.002]
[1693947489440,0.003,25721.0,25719.0,0.80722255]
[1693947489636,0.003,25721.0,25719.0,1.89591055]
[1693947490063,0.003,25721.0,25719.0,1.89791055]
[1693947490290,0.20482279,25722.0,25719.0,1.89591055]
[1693947490498,0.20782279,25722.0,25719.0,1.35356655]
[1693947490761,0.20782279,25722.0,25719.0,1.35156655]
[1693947491393,0.20482279,25722.0,25720.0,0.11881894]
[1693947491802,0.003,25721.0,25720.0,0.11881894]
[1693947492006,0.20482279,25722.0,25720.0,0.11881894]
[1693947492228,0.20782279,25722.0,25720.0,0.11881894]
[1693947493354,0.20482279,25722.0,25720.0,0.11881894]
[1693947493892,0.20782279,25722.0,25721.0,0.15838155]
[1693947494475,0.003,25722.0,25721.0,0.15838155]
[1693947495133,1.96105314,25724.0,25721.0,0.15838155]
[1693947495329,0.003,25722.0,25721.0,0.002]
[1693947496029,0.003,25722.0,25721.0,0.004]
[1693947503579,0.21119136,25722.0,25721.0,0.004]
[1693947505482,0.21119136,25722.0,25721.0,0.003511]
[1693947510820,3.00168877,25722.0,25721.0,0.003511]
[1693947514235,3.09464706,25722.0,25721.0,0.003511]
[1693947514844,2.73428165,25722.0,25721.0,0.003511]
[1693947518852,2.87371909,25722.0,25721.0,0.003511]
[1693947519833,2.7807608,25722.0,25721.0,0.003511]
[1693947521194,2.96667739,25722.0,25721.0,0.003511]
[1693947521535,2.7807608,25722.0,25721.0,0.003511]
[1693947521762,2.82723995,25722.0,25721.0,0.003511]
[1693947522785,3.12237554,25722.0,25721.0,0.003511]
[1693947523710,3.74141654,25722.0,25721.0,0.003511]
[1693947523854,3.55549995,25722.0,25721.0,0.003511]
[1693947524652,3.16885468,25722.0,25721.0,0.003511]
[1693947524906,2.93645895,25722.0,25721.0,0.003511]
[1693947530824,0.29513559,25722.0,25721.0,0.003511]
[1693947540351,0.18642852,25722.0,25721.0,1.89357511]
[1693947540550,0.23305382,25724.0,25721.0,2.78568038]
[1693947540732,0.00099435,25725.0,25722.0,0.88130338]
[1693947540927,0.09322478,25726.0,25723.0,2.7213]
[1693947541139,0.13982904,25727.0,25724.0,0.38664527]
[1693947541140,0.09322478,25727.0,25724.0,0.38664527]
[1693947541357,0.09322478,25727.0,25725.0,2.176868]
[1693947541555,0.23305382,25727.0,25726.0,0.1025]
[1693947541780,0.23299232,25727.0,25726.0,1.735088]
[1693947542070,0.232993,25727.0,25726.0,1.735088]
[1693947542272,0.09316396,25727.0,25726.0,1.735088]
[1693947542583,0.09316396,25727.0,25726.0,1.632588]
[1693947542784,0.28878093,25727.0,25726.0,0.001]
[1693947542997,0.33544601,25727.0,25726.0,0.001]
[1693947543204,0.42854222,25727.0,25726.0,0.001]
[1693947544229,0.28871318,25727.0,25726.0,0.001]
[1693947544443,0.42854222,25727.0,25726.0,0.001]
[1693947545275,0.28871318,25727.0,25726.0,0.001]
[1693947545938,0.42854222,25727.0,25726.0,0.001]
[1693947546143,0.33544601,25727.0,25726.0,0.001]
[1693947548660,0.42847721,25727.0,25726.0,0.001]
[1693947550396,1.20587021,25727.0,25726.0,0.001]
[1693947550603,0.42847721,25727.0,25726.0,0.001]
[1693947550933,0.28864817,25727.0,25726.0,0.001]
[1693947551548,0.42847721,25727.0,25726.0,0.001]
[1693947552102,0.28864817,25727.0,25726.0,0.001]
[1693947552533,0.42847721,25727.0,25726.0,0.001]
[1693947552733,1.20587021,25727.0,25726.0,0.001]
[1693947553860,0.42847721,25727.0,25726.0,0.001]
[1693947554063,0.28864817,25727.0,25726.0,0.001]
[1693947555903,0.19561697,25727.0,25726.0,0.001]
[1693947556482,0.28864817,25727.0,25726.0,0.001]
[1693947559020,0.19561697,25727.0,25726.0,0.001]
[1693947560193,1.01022524,25728.0,25726.0,0.001]
[1693947560438,1.01022524,25728.0,25726.0,1.633588]
[1693947560439,0.0930312,25728.0,25726.0,1.633588]
[1693947561029,0.0930312,25728.0,25726.0,1.632588]
[1693947561443,0.0930312,25728.0,25726.0,1.633588]
[1693947563462,0.0930312,25728.0,25726.0,2.333588]
[1693947564507,0.23286024,25728.0,25726.0,2.333588]
[1693947569139,0.0930312,25727.0,25726.0,2.333588]
[1693947569547,0.23286024,25728.0,25726.0,2.333588]
[1693947569956,0.0930312,25728.0,25726.0,2.333588]
[1693947570175,0.0930312,25728.0,25726.0,2.332588]
[1693947570383,0.0930312,25728.0,25726.0,2.333588]
[1693947571617,0.25313384,25727.0,25726.0,0.7]
[1693947571805,0.25313384,25727.0,25725.0,0.776409]
[1693947572007,0.25313384,25727.0,25726.0,0.001]
[1693947573165,0.39296288,25727.0,25724.0,1.088457]
[1693947573382,0.0930312,25726.0,25724.0,1.088457]
[1693947573585,0.0930312,25726.0,25725.0,0.009]
[1693947574846,0.0930312,25726.0,25724.0,1.105457]
[1693947575050,0.0930312,25726.0,25724.0,1.088457]
[1693947575282,0.0930312,25726.0,25725.0,0.008]
[1693947575721,0.0930312,25726.0,25725.0,0.009]
[1693947575900,0.0930312,25726.0,25724.0,1.088457]
[1693947576101,0.0930312,25726.0,25724.0,1.105457]
[1693947576237,0.0930312,25726.0,25724.0,1.123457]
[1693947576441,0.0930312,25726.0,25724.0,1.105457]
[1693947576905,0.0930312,25726.0,25725.0,0.009]
[1693947577204,0.23286024,25726.0,25725.0,0.009]
[1693947578045,0.23286024,25726.0,25725.0,0.008]
[1693947578954,0.23286024,25726.0,25725.0,0.017]
[1693947579103,0.13982904,25726.0,25725.0,0.017]
[1693947580940,2.24116093,25726.0,25725.0,0.017]
[1693947581139,3.44319234,25726.0,25725.0,0.017]
[1693947581990,3.44319234,25726.0,25725.0,0.009]
[1693947581991,3.11239519,25726.0,25725.0,0.009]
[1693947582175,3.11239519,25726.0,25724.0,0.018]
[1693947582176,3.11239519,25726.0,25721.0,1.088583]
[1693947582381,0.09312292,25723.0,25721.0,1.088583]
[1693947584058,0.2328073,25723.0,25721.0,1.113583]
[1693947584258,0.41005423,25723.0,25721.0,1.113583]
[1693947584902,0.41005423,25723.0,25721.0,1.138583]
[1693947585060,0.27036985,25723.0,25721.0,1.138583]
[1693947585273,0.41005423,25723.0,25721.0,1.138583]
[1693947589329,0.09312292,25722.0,25721.0,1.138583]
[1693947590129,0.41005423,25723.0,25721.0,1.113583]
[1693947590529,0.41005423,25723.0,25721.0,1.088583]
[1693947590978,0.41005423,25723.0,25721.0,1.138583]
[1693947591179,0.41005423,25723.0,25721.0,1.113583]
[1693947591382,0.41005423,25723.0,25721.0,1.088583]
[1693947591581,0.41005423,25723.0,25721.0,1.113583]
[1693947591919,0.41005423,25723.0,25721.0,1.138583]
[1693947594077,0.27036985,25723.0,25721.0,1.138583]
[1693947594925,0.27036985,25723.0,25721.0,1.838583]
[1693947600633,0.18938372,25722.0,25721.0,1.838583]
[1693947601503,0.18938372,25722.0,25721.0,1.813583]
[1693947601925,0.18938372,25722.0,25721.0,1.113583]
[1693947603980,0.18938372,25722.0,25721.0,1.138583]
[1693947606535,0.09312292,25723.0,25721.0,1.138583]
[1693947607304,0.09312292,25723.0,25721.0,1.113583]
[1693947608046,0.09312292,25723.0,25721.0,1.838583]
[1693947610138,0.09312292,25724.0,25722.0,0.48914527]
[1693947610344,0.13968438,25725.0,25723.0,1.63278]
[1693947610345,0.09312292,25725.0,25723.0,1.63278]
[1693947610549,0.13968438,25726.0,25724.0,0.38664527]
[1693947610550,0.09312292,25726.0,25724.0,0.38664527]
[1693947610754,0.09312292,25726.0,25725.0,1.632651]
[1693947610958,0.09312292,25726.0,25725.0,1.707411]
[1693947611164,0.09312292,25726.0,25725.0,1.707171]
[1693947611368,0.09312292,25726.0,25725.0,1.708551]
[1693947611572,0.09312292,25726.0,25725.0,2.405851]
[1693947611775,0.2328073,25727.0,25725.0,2.332651]
[1693947612203,0.2328073,25727.0,25725.0,2.333651]
[1693947612958,0.2328073,25727.0,25725.0,2.436151]
[1693947613913,0.01197649,25726.0,25725.0,2.435151]
[1693947614049,0.01197649,25726.0,25725.0,2.436151]
[1693947614859,0.10509941,25726.0,25725.0,2.435151]
[1693947615058,0.10509941,25726.0,25725.0,2.436151]
[1693947616229,0.10509941,25726.0,25725.0,1.736151]
[1693947617632,0.10509941,25726.0,25725.0,2.436151]
[1693947619257,0.10509941,25726.0,25725.0,1.736151]
[1693947621371,0.01197649,25726.0,25725.0,1.736151]
[1693947621600,0.10509941,25726.0,25725.0,1.736151]
[1693947621776,0.01197649,25726.0,25725.0,1.736151]
[1693947621976,0.10509941,25726.0,25725.0,1.736151]
[1693947622182,0.01197649,25726.0,25725.0,1.736151]
[1693947622399,0.10509941,25726.0,25725.0,1.736151]
[1693947622740,0.01197649,25726.0,25725.0,1.73639434]
[1693947624173,0.01197649,25726.0,25725.0,2.43639434]
[1693947624602,0.32777219,25726.0,25725.0,0.70124334]
[1693947624817,0.46745657,25726.0,25725.0,0.70124334]
[1693947625250,1.24487957,25726.0,25725.0,0.00124334]
[1693947625852,1.15175665,25726.0,25725.0,0.00124334]
[1693947626857,1.24489324,25726.0,25725.0,0.00124334]
[1693947627090,0.46747024,25726.0,25725.0,0.00124334]
[1693947627498,0.24479746,25726.0,25725.0,0.00124334]
[1693947627721,0.24479746,25726.0,25725.0,1.08967734]
[1693947627722,0.10511308,25726.0,25725.0,1.08967734]
[1693947628728,0.24479746,25726.0,25725.0,1.08967734]
[1693947635437,0.10511308,25726.0,25725.0,1.08967734]
[1693947643632,0.10511308,25726.0,25725.0,0.54546034]
[1693947646090,0.29564979,25726.0,25725.0,0.54546034]
[1693947651445,0.43539984,25726.0,25725.0,0.54546034]
[1693947652470,0.29571546,25726.0,25725.0,0.54546034]
[1693947653644,0.43539984,25726.0,25725.0,0.54546034]
[1693947654324,0.29571546,25726.0,25725.0,0.54546034]
[1693947654562,0.34219758,25726.0,25725.0,0.54546034]
[1693947655555,0.43544014,25726.0,25725.0,0.54546034]
[1693947656112,0.34219758,25726.0,25725.0,0.54546034]
[1693947656513,0.34219758,25726.0,25725.0,0.00124334]
[1693947656912,0.34583208,25726.0,25725.0,0.00124334]
[1693947657113,0.34583208,25726.0,25725.0,0.54546034]
[1693947657358,0.42349558,25726.0,25725.0,0.54546034]
[1693947658150,0.42349558,25726.0,25725.0,0.00124334]
[1693947660379,0.42349558,25726.0,25725.0,0.54546034]
[1693947662028,0.23295887,25726.0,25725.0,0.54546034]
[1693947663324,0.03295887,25726.0,25725.0,0.54546034]
[1693947666270,0.03295887,25726.0,25725.0,0.544217]
[1693947666625,0.03295887,25726.0,25725.0,0.54445993]
[1693947676370,0.03295887,25726.0,25725.0,0.51682531]
[1693947679234,0.03295887,25726.0,25725.0,1.06104231]
[1693947679446,0.03295887,25726.0,25725.0,0.54445993]
[1693947679601,0.03295887,25726.0,25725.0,1.08867693]
[1693947681052,0.03295887,25726.0,25725.0,1.78867693]
[1693947682655,0.03295887,25726.0,25725.0,1.08867693]
[1693947689668,1.00038039,25727.0,25725.0,1.08867693]
[1693947689872,0.09325459,25726.0,25725.0,1.08867693]
[1693947691319,0.09325459,25726.0,25725.0,1.08967693]
[1693947691720,0.09325459,25726.0,25725.0,1.08867693]
[1693947691920,0.09325459,25726.0,25725.0,1.08967693]
[1693947692972,1.00038039,25727.0,25725.0,1.08967693]
[1693947693132,0.09326048,25726.0,25725.0,1.08967693]
[1693947693695,0.09326048,25726.0,25725.0,1.08867693]
[1693947694024,0.09326048,25726.0,25725.0,1.08967693]
[1693947694231,0.09326048,25726.0,25725.0,1.08867693]
[1693947695085,0.09326048,25726.0,25725.0,1.08967693]
[1693947700379,0.09326048,25726.0,25725.0,0.54545993]
[1693947701732,0.2331512,25726.0,25725.0,0.54545993]
[1693947702330,0.09326048,25726.0,25725.0,0.54545993]
[1693947705613,0.2331512,25726.0,25725.0,0.54545993]
[1693947708250,0.2331512,25726.0,25725.0,0.00124293]
[1693947715174,0.2331512,25726.0,25725.0,0.54545993]
[1693947716381,0.2331512,25726.0,25725.0,0.00124293]
[1693947717642,0.13989072,25726.0,25725.0,0.00124293]
[1693947719148,0.23324246,25726.0,25725.0,0.00124293]
[1693947722086,0.13989072,25726.0,25725.0,0.00124293]
[1693947723494,0.23324375,25726.0,25725.0,0.00124293]
[1693947723833,0.13989072,25726.0,25725.0,0.00124293]
[1693947729860,0.23324162,25726.0,25725.0,0.00124293]
[1693947730477,0.13989072,25726.0,25725.0,0.00124293]
[1693947735355,0.23323883,25726.0,25725.0,0.00124293]
[1693947741941,0.13989072,25726.0,25725.0,0.00124293]
[1693947742348,0.91731372,25726.0,25725.0,0.00124293]
[1693947764577,0.13989072,25726.0,25725.0,0.00124293]
[1693947770407,0.13989072,25726.0,25725.0,0.54545993]
[1693947778784,0.23323667,25726.0,25725.0,0.54545993]
[1693947780426,0.13989072,25726.0,25725.0,0.54545993]
[1693947798370,0.32641168,25726.0,25725.0,0.54545993]
[1693947799565,0.13989072,25726.0,25725.0,0.54545993]
[1693947800759,0.32641168,25726.0,25725.0,0.54545993]
[1693947801528,0.32641168,25726.0,25725.0,0.00124293]
[1693947802548,0.13989072,25726.0,25725.0,0.00124293]
[1693947804891,0.32641168,25726.0,25725.0,0.00124293]
[1693947805494,1.10383468,25726.0,25725.0,0.00124293]
[1693947805671,0.91731372,25726.0,25725.0,0.00124293]
[1693947810475,1.10383468,25726.0,25725.0,0.00124293]
[1693947811641,0.91731372,25726.0,25725.0,0.00124293]
[1693947814361,1.10383468,25726.0,25725.0,0.00124293]
[1693947823149,0.91731372,25726.0,25725.0,0.00124293]
[1693947824283,1.10383468,25726.0,25725.0,0.00124293]
[1693947824490,0.91731372,25726.0,25725.0,0.00124293]
[1693947825080,1.10383468,25726.0,25725.0,0.00124293]
[1693947826716,0.96394396,25726.0,25725.0,0.00124293]
[1693947827403,1.10397048,25726.0,25725.0,0.00124293]
[1693947827583,1.10397276,25726.0,25725.0,0.00124293]
[1693947828646,0.96394396,25726.0,25725.0,0.00124293]
[1693947829622,1.10397284,25726.0,25725.0,0.00124293]
[1693947846735,1.10397284,25726.0,25725.0,0.0012726]
[1693947848710,0.91745188,25726.0,25725.0,0.0012726]
[1693947849489,1.74136696,25726.0,25725.0,0.0012726]
[1693947849891,2.73227621,25726.0,25725.0,0.0012726]
[1693947850146,2.83477621,25726.0,25725.0,0.0012726]
[1693947851133,3.0910701,25726.0,25725.0,0.0012726]
[1693947851735,3.09106799,25726.0,25725.0,0.0012726]
[1693947851969,2.83477621,25726.0,25725.0,0.0012726]
[1693947855373,2.05735321,25726.0,25725.0,0.0012726]
[1693947860263,1.84386696,25726.0,25725.0,0.0012726]
[1693947860470,2.62128996,25726.0,25725.0,0.0012726]
[1693947860685,2.87757874,25726.0,25725.0,0.0012726]
[1693947862047,2.76130994,25726.0,25725.0,0.0012726]
[1693947862426,2.62128996,25726.0,25725.0,0.0012726]
[1693947864001,1.84386696,25726.0,25725.0,0.0012726]
[1693947865708,1.89446382,25726.0,25725.0,0.0012726]
[1693947865859,1.84386696,25726.0,25725.0,0.0012726]
[1693947868244,1.74136696,25726.0,25725.0,0.0012726]
[1693947868583,1.88138883,25726.0,25725.0,0.0012726]
[1693947869718,1.74136696,25726.0,25725.0,0.0012726]
[1693947873228,1.84386696,25726.0,25725.0,0.0012726]
[1693947873432,1.06644396,25726.0,25725.0,0.0012726]
[1693947873800,1.06644396,25726.0,25725.0,0.7012726]
[1693947880799,1.06644396,25726.0,25725.0,0.0012726]
[1693947893170,0.96394396,25726.0,25725.0,0.0012726]
[1693947893979,1.22151048,25726.0,25725.0,0.0012726]
[1693947894190,0.96394396,25726.0,25725.0,0.0012726]
[1693947894600,1.22150836,25726.0,25725.0,0.0012726]
[1693947901237,1.22162267,25726.0,25725.0,0.0012726]
[1693947901441,1.1039791,25726.0,25725.0,0.0012726]
[1693947901672,0.14003514,25726.0,25725.0,0.0012726]
[1693947902471,0.3265561,25726.0,25725.0,0.0012726]
[1693947903281,0.14003514,25726.0,25725.0,0.0012726]
[1693947905807,0.14003514,25726.0,25725.0,0.7012726]
[1693947908013,0.14003514,25726.0,25725.0,0.0012726]
[1693947908898,0.91745814,25726.0,25725.0,0.0012726]
[1693947912986,1.1039791,25726.0,25725.0,0.0012726]
[1693947925953,0.91745814,25726.0,25725.0,0.0012726]
[1693947926300,1.1039791,25726.0,25725.0,0.0012726]
[1693947958537,0.3265561,25726.0,25725.0,0.7012726]
[1693947959672,0.14003514,25726.0,25725.0,0.7012726]
[1693947960393,0.14003514,25726.0,25725.0,2.3339236]
[1693947960394,0.09335343,25726.0,25725.0,2.3339236]
[1693947960595,0.09335343,25727.0,25725.0,2.72056887]
[1693947960803,0.09335343,25727.0,25726.0,0.38664527]
[1693947961003,0.09335343,25727.0,25726.0,2.71923327]
[1693947961701,0.09335343,25727.0,25726.0,2.71952074]
[1693947961919,0.09435343,25727.0,25726.0,2.71952074]
[1693947962971,0.001,25727.0,25726.0,2.71952074]
[1693947963575,0.23338857,25728.0,25726.0,2.71952074]
[1693947963896,0.23338857,25728.0,25726.0,2.72852074]
[1693947964102,0.23338857,25728.0,25726.0,2.71952074]
[1693947964485,0.09335343,25728.0,25726.0,2.73652074]
[1693947964684,0.09335343,25728.0,25726.0,2.72752074]
[1693947964864,0.09335343,25728.0,25726.0,2.72852074]
[1693947965236,0.09335343,25728.0,25726.0,2.73652074]
[1693947970971,0.25318857,25729.0,25726.0,2.73652074]
[1693947971763,0.25318857,25729.0,25726.0,2.72852074]
[1693947972123,0.25318857,25729.0,25726.0,2.73652074]
[1693947973796,0.25318857,25729.0,25726.0,2.72752074]
[1693947974165,0.25318857,25729.0,25726.0,2.73652074]
[1693947977715,0.11315343,25729.0,25726.0,2.73652074]
[1693947984772,0.11315343,25729.0,25726.0,2.69752074]
[1693947987410,0.25318857,25729.0,25726.0,2.69752074]
[1693947987614,0.11315343,25729.0,25726.0,2.69752074]
[1693947988463,0.25318857,25729.0,25726.0,2.69752074]
[1693947989011,0.11315343,25729.0,25726.0,2.69752074]
[1693947989412,0.25318857,25729.0,25726.0,2.69752074]
[1693947993860,0.0198,25729.0,25726.0,2.69752074]
[1693947994068,0.25289593,25729.0,25726.0,2.69752074]
[1693947995251,1.03022893,25729.0,25726.0,2.69752074]
[1693947997343,0.09323837,25728.0,25726.0,2.69752074]
[1693947998236,0.09323837,25728.0,25726.0,2.68952074]
[1693947998438,0.09323837,25728.0,25726.0,2.69752074]
[1693947998613,0.09323837,25728.0,25726.0,2.68852074]
[1693947998818,0.09323837,25728.0,25726.0,2.69752074]
[1693948001435,0.09323837,25728.0,25726.0,2.15332474]
[1693948004428,0.23309593,25728.0,25726.0,2.15332474]
[1693948005475,0.09323837,25727.0,25726.0,2.15332474]
[1693948006544,0.09323837,25727.0,25726.0,2.14532474]
[1693948006719,0.09323837,25727.0,25726.0,2.14432474]
[1693948006947,0.09323837,25727.0,25726.0,2.15332474]
[1693948008351,0.94076761,25731.0,25730.0,0.02]
[1693948008352,0.23432965,25731.0,25730.0,0.02]
[1693948008553,0.00098961,25731.0,25730.0,3.35363638]
[1693948008759,0.0198,25733.0,25730.0,3.99098978]
[1693948009011,0.0198,25733.0,25731.0,0.54130338]
[1693948009223,0.0198,25733.0,25732.0,2.176276]
[1693948009427,0.0198,25733.0,25732.0,3.42728127]
[1693948009631,0.0198,25733.0,25732.0,4.12584127]
[1693948009832,0.0198,25733.0,25732.0,4.12513065]
[1693948010045,0.0198,25733.0,25732.0,4.12297065]
[1693948010171,0.0198,25733.0,25732.0,4.12513065]
[1693948010382,0.0198,25733.0,25732.0,4.17465065]
[1693948010585,0.0198,25733.0,25732.0,4.17411065]
[1693948010789,0.0198,25733.0,25732.0,4.14959065]
[1693948010996,0.0198,25733.0,25732.0,4.17081065]
[1693948011227,0.0198,25733.0,25732.0,4.14449065]
[1693948011432,0.0198,25733.0,25732.0,4.14545065]
[1693948011797,0.0198,25733.0,25732.0,4.17045065]
[1693948011948,0.0198,25733.0,25732.0,4.17051065]
[1693948012152,0.0198,25733.0,25732.0,4.17033065]
[1693948012355,0.0198,25733.0,25732.0,4.17015065]
[1693948012560,0.0198,25733.0,25732.0,4.16973065]
[1693948012785,0.0198,25733.0,25732.0,4.14461065]
[1693948012987,0.0198,25733.0,25732.0,4.14563065]
[1693948013144,0.0198,25733.0,25732.0,4.27301065]
[1693948013344,0.0198,25733.0,25732.0,4.28663065]
[1693948013741,0.0198,25733.0,25732.0,4.29359065]
[1693948013950,0.0198,25733.0,25732.0,4.28897065]
[1693948014153,0.0198,25733.0,25732.0,4.29161065]
[1693948014367,0.0198,25733.0,25732.0,4.29173065]
[1693948014574,0.0198,25733.0,25732.0,4.29155065]
[1693948014778,0.0198,25733.0,25732.0,4.29131065]
[1693948015009,0.0198,25733.0,25732.0,4.28939065]
[1693948015238,0.0198,25733.0,25732.0,4.28945065]
[1693948015447,0.0198,25733.0,25732.0,4.29131065]
[1693948015655,0.0198,25733.0,25732.0,4.29077065]
[1693948015861,0.0198,25733.0,25732.0,4.26577065]
[1693948016071,0.0198,25733.0,25732.0,4.24077065]
[1693948016281,0.0198,25733.0,25732.0,4.27101065]
[1693948016564,0.0198,25733.0,25732.0,4.26583065]
[1693948016773,0.0198,25733.0,25732.0,4.24137065]
[1693948016975,0.0198,25733.0,25732.0,4.29083065]
[1693948017155,0.0198,25733.0,25732.0,4.29119065]
[1693948017373,0.0198,25733.0,25732.0,4.29305065]
[1693948017536,0.0198,25733.0,25732.0,4.29257065]
[1693948017753,0.0198,25733.0,25732.0,4.29149065]
[1693948017957,0.0198,25733.0,25732.0,4.29305065]
[1693948018167,0.0198,25733.0,25732.0,4.55777065]
[1693948018370,0.0198,25733.0,25732.0,4.74773065]
[1693948018571,0.0198,25733.0,25732.0,4.75001065]
[1693948018800,0.0198,25733.0,25732.0,4.75073065]
[1693948018941,0.0198,25733.0,25732.0,4.75469065]
[1693948019141,0.0198,25733.0,25732.0,4.73173065]
[1693948019389,0.02079141,25736.0,25735.0,0.5891]
[1693948019567,0.02079141,25736.0,25735.0,4.81827527]
[1693948019740,0.02079141,25736.0,25735.0,4.95639527]
[1693948019741,0.0198,25736.0,25735.0,4.95639527]
[1693948019957,0.0198,25736.0,25735.0,4.95645527]
[1693948020137,0.0198,25736.0,25735.0,4.95417527]
[1693948020367,0.0198,25736.0,25735.0,4.95297527]
[1693948020575,0.0198,25736.0,25735.0,5.00124363]
[1693948020813,0.0198,25736.0,25735.0,5.11196363]
[1693948021190,0.0198,25736.0,25735.0,5.30756363]
[1693948021400,0.04,25738.0,25737.0,0.08]
[1693948021606,0.04,25738.0,25737.0,4.71806027]
[1693948021989,0.04,25738.0,25737.0,5.01686027]
[1693948022192,0.04,25738.0,25737.0,5.01542027]
[1693948022608,0.04,25738.0,25737.0,5.01734027]
[1693948022811,0.04,25738.0,25737.0,5.04294027]
[1693948023032,0.04,25738.0,25737.0,5.04438027]
[1693948023240,0.04,25738.0,25737.0,5.04306027]
[1693948023442,0.04,25738.0,25737.0,5.07802027]
[1693948023644,0.04,25738.0,25737.0,5.05050027]
[1693948023849,0.04,25738.0,25737.0,5.07502027]
[1693948024047,0.04,25738.0,25737.0,5.07142027]
[1693948024267,0.04,25738.0,25737.0,5.06914027]
[1693948024482,0.04,25738.0,25737.0,5.06530027]
[1693948024681,0.04,25738.0,25737.0,5.06608795]
[1693948024842,0.04,25738.0,25737.0,5.06596795]
[1693948024992,0.04,25738.0,25737.0,5.06464795]
[1693948025197,0.04,25738.0,25737.0,5.06524795]
[1693948025447,0.04,25738.0,25737.0,5.06464795]
[1693948025647,0.04,25738.0,25737.0,5.06440795]
[1693948025853,0.04,25738.0,25737.0,5.06452795]
[1693948026004,0.04,25738.0,25737.0,5.06176795]
[1693948026216,0.04,25738.0,25737.0,5.06116795]
[1693948026630,0.04,25738.0,25737.0,5.07088795]
[1693948026845,0.04,25738.0,25737.0,5.07040795]
[1693948027043,0.04,25738.0,25737.0,5.06956795]
[1693948027470,0.04,25738.0,25737.0,5.06932795]
[1693948027673,0.04,25738.0,25737.0,5.06884795]
[1693948027915,0.04,25738.0,25737.0,5.06860795]
[1693948028298,0.04,25738.0,25737.0,5.06536795]
[1693948028498,0.04,25738.0,25737.0,5.06488795]
[1693948028823,0.04,25738.0,25737.0,5.06524795]
[1693948029035,0.04,25738.0,25737.0,5.06884795]
[1693948029252,0.04,25738.0,25737.0,5.06896795]
[1693948029457,0.04,25738.0,25737.0,5.06764795]
[1693948029873,0.04,25738.0,25737.0,5.06800795]
[1693948030076,0.04,25738.0,25737.0,5.06692795]
[1693948030279,0.04,25738.0,25737.0,5.06824795]
[1693948030507,0.04,25738.0,25737.0,5.06524795]
[1693948030716,0.04,25738.0,25737.0,5.06260795]
[1693948030912,0.04,25738.0,25737.0,5.06560795]
[1693948031124,0.04,25738.0,25737.0,5.06548795]
[1693948031432,0.04,25738.0,25737.0,5.05876795]
[1693948031632,0.04,25738.0,25737.0,5.06224795]
[1693948031869,0.04,25738.0,25737.0,5.06188795]
[1693948032053,0.04,25738.0,25737.0,5.06200795]
[1693948032207,0.04,25738.0,25737.0,5.06056795]
[1693948032415,0.04,25738.0,25737.0,5.04989397]
[1693948032641,0.04,25738.0,25737.0,5.05145397]
[1693948032836,0.04,25738.0,25737.0,5.13906653]
[1693948032990,0.04,25738.0,25737.0,5.15089805]
[1693948033196,0.04,25738.0,25737.0,5.15341805]
[1693948033402,0.04,25738.0,25737.0,5.15113805]
[1693948033599,0.04,25738.0,25737.0,5.15317805]
[1693948033822,0.04,25738.0,25737.0,5.15101805]
[1693948034045,0.04,25738.0,25737.0,5.15113805]
[1693948034244,0.04,25738.0,25737.0,5.15161805]
[1693948034463,0.04,25738.0,25737.0,5.15413805]
[1693948034665,0.04,25738.0,25737.0,5.15521805]
[1693948034867,0.04,25738.0,25737.0,5.15569805]
[1693948035219,0.04,25738.0,25737.0,5.15341805]
[1693948035480,0.04,25738.0,25737.0,5.15353805]
[1693948035679,0.04,25738.0,25737.0,5.15401805]
[1693948035879,0.04,25738.0,25737.0,5.15761805]
[1693948036174,0.04,25738.0,25737.0,5.16625805]
[1693948036443,0.04,25738.0,25737.0,5.16613805]
[1693948036613,0.04,25738.0,25737.0,5.16313805]
[1693948036972,0.04,25738.0,25737.0,5.16289805]
[1693948037171,0.04,25738.0,25737.0,5.16217805]
[1693948037551,0.04,25738.0,25737.0,5.16193805]
[1693948037772,0.04,25738.0,25737.0,5.16181805]
[1693948037971,0.04,25738.0,25737.0,5.35617805]
[1693948038281,0.04,25738.0,25737.0,5.35113805]
[1693948038478,0.04,25738.0,25737.0,5.35293805]
[1693948038680,0.04,25738.0,25737.0,5.35701805]
[1693948038892,0.04,25738.0,25737.0,5.35641805]
[1693948039098,0.04,25738.0,25737.0,5.35725805]
[1693948039354,0.04,25738.0,25737.0,5.35737805]
[1693948039557,0.04,25738.0,25737.0,5.36049805]
[1693948039783,0.04,25738.0,25737.0,5.36181805]
[1693948039983,0.04,25738.0,25737.0,5.36193805]
[1693948040271,0.04,25738.0,25737.0,5.36217805]
[1693948040473,0.04,25738.0,25737.0,5.35929805]
[1693948040703,0.04,25738.0,25737.0,5.35905805]
[1693948041117,0.04,25738.0,25737.0,5.36085805]
[1693948041339,0.04,25738.0,25737.0,5.36097805]
[1693948041462,0.04,25738.0,25737.0,5.36121805]
[1693948041674,0.04,25738.0,25737.0,5.36133805]
[1693948042097,0.04,25738.0,25737.0,5.36421805]
[1693948042296,0.04,25738.0,25737.0,5.36433805]
[1693948042503,0.04,25738.0,25737.0,5.36505805]
[1693948042699,0.04,25738.0,25737.0,5.36337805]
[1693948043015,0.04,25738.0,25737.0,5.36325805]
[1693948043230,0.04,25738.0,25737.0,5.36361805]
[1693948043430,0.04,25738.0,25737.0,5.36445805]
[1693948043628,0.04,25738.0,25737.0,5.36409805]
[1693948043976,0.04,25738.0,25737.0,5.36025805]
[1693948044502,0.04,25738.0,25737.0,5.36421805]
[1693948044711,0.04,25738.0,25737.0,5.36001805]
[1693948044921,0.04,25738.0,25737.0,5.35977805]
[1693948045127,0.04,25738.0,25737.0,5.35833805]